bitfinex-derivatives/quotes_SOLF0:USTF0_20240918
["timestamp","ask_amount","ask_price","bid_price","bid_amount"]
[1726622183646,2.8876,131.01,130.94,14.68]
[1726622183848,2.8876,131.01,130.98,3.8161]
[1726622184145,2.8876,131.01,130.94,14.68]
[1726622184354,1.4455,131.01,130.95,12.22728975]
[1726622184550,1.4455,131.01,131.0,3.8158]
[1726622185747,1.4455,131.01,130.95,5.24422927]
[1726622185944,16.1255,131.01,130.95,5.24422927]
[1726622186340,16.1255,131.01,130.98,3.8162]
[1726622187748,19.941,131.01,130.98,3.8162]
[1726622187949,1.4455,131.01,130.99,3.816]
[1726622190257,1.4455,131.01,130.98,3.8163]
[1726622190455,1.4455,131.01,130.95,6.98079196]
[1726622190656,1.4455,131.01,130.94,14.68]
[1726622190958,1.4455,131.01,130.95,6.98050572]
[1726622191156,1.4455,131.01,130.94,14.68]
[1726622191157,5.2612,131.01,130.94,14.68]
[1726622191660,5.2612,131.01,130.97,3.8164]
[1726622193655,16.1625,131.02,130.94,14.68]
[1726622193850,16.1625,131.02,130.95,5.24303631]
[1726622194059,16.1625,131.02,130.99,3.8158]
[1726622194262,16.1625,131.02,130.95,5.24277446]
[1726622194455,16.1625,131.02,130.94,14.68]
[1726622194757,16.1625,131.02,130.95,5.24254543]
[1726622194963,16.1625,131.02,130.94,14.68]
[1726622195561,3.8157,131.01,130.97,3.8165]
[1726622199065,3.8157,131.01,130.98,3.8163]
[1726622200470,14.68,130.99,130.92,1.4482]
[1726622200764,14.68,130.99,130.91,14.68]
[1726622200961,14.68,130.99,130.92,12.22522888]
[1726622201158,14.68,130.99,130.95,3.8171]
[1726622201159,18.4963,130.99,130.95,3.8171]
[1726622201560,18.4963,130.99,130.96,3.8169]
[1726622202763,18.4963,130.99,130.95,3.8172]
[1726622202974,3.8164,130.98,130.91,14.68]
[1726622203160,3.8164,130.98,130.89,5.31670186]
[1726622203161,14.68,130.97,130.92,3.8179]
[1726622203362,17.4672,131.0,130.88,14.68]
[1726622203363,14.68,130.95,130.9,5.24687533]
[1726622203558,14.68,130.95,130.88,14.68]
[1726622203769,14.68,130.94,130.9,3.8185]
[1726622204162,14.68,130.94,130.86,165.6153683]
[1726622204361,18.4977,130.94,130.89,3.8189]
[1726622204974,14.68,130.92,130.88,3.8192]
[1726622205565,18.4982,130.92,130.87,3.8195]
[1726622205772,14.68,130.9,130.87,3.8195]
[1726622206068,14.68,130.9,130.83,14.68]
[1726622206268,14.68,130.9,130.86,3.8196]
[1726622206976,14.68,130.9,130.85,3.8201]
[1726622207169,1.4158,130.89,130.85,3.8201]
[1726622207369,16.0958,130.89,130.81,16.0775]
[1726622207565,1.4158,130.89,130.81,16.0775]
[1726622208476,1.4158,130.89,130.86,3.8198]
[1726622209173,1.4158,130.89,130.87,3.8195]
[1726622209971,1.4158,130.89,130.83,14.68]
[1726622210373,1.4158,130.89,130.87,3.8194]
[1726622211877,1.4158,130.89,130.86,3.8199]
[1726622212776,16.0958,130.89,130.85,3.8201]
[1726622213681,16.0958,130.89,130.86,3.8199]
[1726622215269,16.0958,130.89,130.81,16.0775]
[1726622215473,16.0958,130.89,130.81,1.3975]
[1726622215678,14.68,130.87,130.81,1.3975]
[1726622216179,14.68,130.87,130.84,3.8203]
[1726622216371,17.5249,130.89,130.81,16.0775]
[1726622216574,17.5249,130.89,130.86,3.8199]
[1726622217576,17.5249,130.89,130.85,3.8201]
[1726622218578,17.5249,130.89,130.86,3.8198]
[1726622219674,21.3439,130.89,130.85,3.8201]
[1726622221772,14.68,130.87,130.85,3.8201]
[1726622221981,14.68,130.87,130.84,3.8203]
[1726622222382,14.68,130.87,130.78,0.2864]
[1726622222383,14.68,130.85,130.78,0.2864]
[1726622222681,14.68,130.85,130.77,16.0902]
[1726622222875,14.68,130.85,130.77,19.92467622]
[1726622223075,14.68,130.85,130.83,3.8207]
[1726622223682,14.68,130.87,130.79,14.68]
[1726622224283,21.36969422,130.89,130.81,14.68]
[1726622224484,17.5249,130.89,130.81,14.68]
[1726622224778,2.8449,130.89,130.83,14.68]
[1726622225384,1.4158,130.89,130.88,3.8193]
[1726622225589,1.4682,130.9,130.88,3.8193]
[1726622227884,1.3941,130.92,130.84,14.68]
[1726622228082,1.3941,130.92,130.84,18.50480956]
[1726622228790,1.3941,130.92,130.89,3.8189]
[1726622231089,1.3941,130.92,130.9,3.8186]
[1726622231490,1.3941,130.92,130.84,18.50480956]
[1726622233489,1.3941,130.92,130.89,3.8187]
[1726622233685,1.3941,130.92,130.84,18.50480956]
[1726622233686,1.3941,130.92,130.87,14.68]
[1726622234691,1.459,130.94,130.87,14.68]
[1726622235695,1.459,130.94,130.88,14.68]
[1726622235888,15.28,130.96,130.82,9.0453]
[1726622235889,19.14684093,130.96,130.82,1.4103]
[1726622236085,14.68,130.91,130.83,14.68]
[1726622236292,14.68,130.91,130.84,3.88556378]
[1726622237202,14.68,130.91,130.86,3.8196]
[1726622237203,18.4987,130.91,130.86,3.8196]
[1726622237497,1.4414,130.93,130.82,1.4103]
[1726622237498,14.68,130.88,130.82,1.4103]
[1726622237701,14.68,130.88,130.84,3.8202]
[1726622238291,14.68,130.88,130.85,3.8202]
[1726622238498,14.68,130.9,130.82,1.4103]
[1726622239699,14.68,130.9,130.87,3.8196]
[1726622239998,14.68,130.9,130.82,1.4103]
[1726622240401,14.68,130.9,130.86,3.8198]
[1726622240598,14.68,130.9,130.82,1.4103]
[1726622240800,14.68,130.91,130.88,3.8193]
[1726622241091,14.68,130.92,130.85,3.86798723]
[1726622241292,14.68,130.92,130.84,14.68]
[1726622241485,18.4982,130.92,130.87,3.8193]
[1726622242599,18.4982,130.92,130.88,3.8192]
[1726622243300,14.68,130.92,130.88,3.8192]
[1726622244193,14.68,130.92,130.89,3.819]
[1726622244693,18.4981,130.92,130.88,3.8192]
[1726622245500,3.8189,130.9,130.82,1.4103]
[1726622246094,3.8189,130.9,130.86,3.8196]
[1726622246695,18.4985,130.91,130.87,3.8196]
[1726622247099,3.8189,130.9,130.82,1.4103]
[1726622247300,14.68,130.89,130.82,1.4103]
[1726622247801,14.68,130.89,130.85,3.82]
[1726622248201,14.68,130.89,130.82,1.4103]
[1726622248700,14.68,130.89,130.86,3.8198]
[1726622249301,18.499,130.89,130.85,3.8201]
[1726622250204,14.68,130.89,130.86,3.8198]
[1726622253301,14.68,130.89,130.87,3.8196]
[1726622253509,16.1214,130.93,130.84,3.8265407]
[1726622253714,16.1214,130.93,130.83,14.68]
[1726622254303,19.9395,130.93,130.88,3.819]
[1726622254504,19.9395,130.93,130.86,3.76033594]
[1726622254708,16.1214,130.93,130.86,3.76033594]
[1726622254908,19.9393,130.93,130.9,3.8186]
[1726622255105,16.1214,130.93,130.9,3.8186]
[1726622256615,19.9393,130.93,130.89,3.8189]
[1726622257305,1.4414,130.93,130.9,3.8185]
[1726622259711,1.4414,130.93,130.91,3.8184]
[1726622259917,1.4414,130.93,130.87,3.74199843]
[1726622260111,1.4414,130.93,130.85,14.68]
[1726622260112,5.2592,130.93,130.85,14.68]
[1726622260316,5.2592,130.93,130.89,3.8188]
[1726622260517,5.2592,130.93,130.87,3.89451337]
[1726622260713,5.2592,130.93,130.85,14.68]
[1726622261312,5.2592,130.93,130.85,18.54242518]
[1726622261515,1.4414,130.93,130.9,3.8186]
[1726622261714,1.4414,130.93,130.85,18.54242518]
[1726622262014,1.4414,130.93,130.86,14.68]
[1726622262720,1.4414,130.93,130.91,3.8183]
[1726622265321,1.4414,130.93,130.92,3.8181]
[1726622265521,1.4908,130.95,130.92,3.8181]
[1726622266615,5.2475,130.97,130.93,3.8177]
[1726622268820,5.2475,130.97,130.94,3.8175]
[1726622270322,5.2475,130.97,130.93,3.8177]
[1726622271322,5.2475,130.97,130.94,3.8175]
[1726622271528,1.4307,130.97,130.94,3.8175]
[1726622271916,9.39,130.96,130.94,3.8175]
[1726622276425,9.39,130.95,130.92,3.8178]
[1726622276727,9.39,130.94,130.92,3.8178]
[1726622278021,9.39,130.95,130.92,3.8178]
[1726622278619,13.2072,130.96,130.93,3.8177]
[1726622279031,9.39,130.96,130.93,3.8177]
[1726622280130,13.207,130.96,130.93,3.8177]
[1726622283535,14.7226,130.96,130.93,3.8177]
[1726622284935,1.4307,130.97,130.93,9.39]
[1726622285325,1.4307,130.97,130.96,3.817]
[1726622285525,1.4307,130.97,130.95,9.39]
[1726622285733,1.4307,130.97,130.93,9.39]
[1726622286530,9.39,130.94,130.9,9.39]
[1726622286928,9.39,130.93,130.88,9.39]
[1726622287128,9.39,130.92,130.86,7.36644128]
[1726622287330,10.8381,130.92,130.87,9.39]
[1726622287533,9.39,130.91,130.88,3.8192]
[1726622288536,1.4481,130.92,130.88,9.39]
[1726622289038,1.4481,130.92,130.89,9.39]
[1726622289230,1.4481,130.92,130.85,3.88721304]
[1726622289538,10.8381,130.92,130.87,9.39]
[1726622289740,9.39,130.91,130.88,3.8192]
[1726622290435,14.6564,130.92,130.88,13.2092]
[1726622290640,10.8381,130.92,130.88,13.2092]
[1726622291033,14.6562,130.92,130.88,13.2092]
[1726622291231,10.8381,130.92,130.89,3.8189]
[1726622291535,10.8381,130.92,130.89,9.39]
[1726622291536,1.4481,130.92,130.89,9.39]
[1726622291838,1.4481,130.92,130.9,9.39]
[1726622292027,1.4481,130.92,130.89,9.39]
[1726622292431,1.4481,130.92,130.9,3.8186]
[1726622293134,10.8381,130.92,130.89,13.2089]
[1726622294137,10.8381,130.92,130.89,3.8189]
[1726622295734,10.8381,130.92,130.9,9.39]
[1726622295735,1.4481,130.92,130.9,9.39]
[1726622296037,5.28591853,130.96,130.9,9.39]
[1726622296038,9.39,130.95,130.9,9.39]
[1726622296239,1.4892,130.96,130.93,9.39]
[1726622296430,1.4892,130.96,130.93,13.2076]
[1726622296831,2.909,130.97,130.93,9.39]
[1726622297037,2.909,130.97,130.94,13.2073]
[1726622297540,1.4114,130.97,130.95,13.2072]
[1726622299033,1.4114,130.97,130.95,3.8172]
[1726622300343,14.6181,130.97,130.92,9.39]
[1726622300537,9.39,130.96,130.92,9.39]
[1726622300737,14.6181,130.97,130.92,9.39]
[1726622300939,1.4114,130.97,130.91,3.80587019]
[1726622301248,15.28,130.98,130.94,9.39]
[1726622302042,15.28,130.98,130.96,3.817]
[1726622302443,3.8151,131.03,130.99,3.8159]
[1726622302642,9.39,131.04,130.99,9.39]
[1726622303541,13.2047,131.04,131.0,3.8156]
[1726622303742,15.26,131.06,130.99,9.39]
[1726622303952,9.39,131.03,131.01,3.8153]
[1726622306244,9.39,131.04,131.01,3.8153]
[1726622307347,9.39,131.04,131.02,3.8152]
[1726622307553,9.39,131.04,131.0,9.39]
[1726622307851,24.65,131.06,131.03,3.8146]
[1726622309748,28.4641,131.06,131.03,3.8146]
[1726622310450,13.2041,131.06,131.03,3.8146]
[1726622310848,8.16376812,131.07,131.05,9.39]
[1726622310849,4.3439,131.07,131.05,9.39]
[1726622311251,4.3439,131.07,131.04,9.39]
[1726622312551,13.7339,131.07,131.03,9.39]
[1726622312852,4.3439,131.07,131.04,13.2044]
[1726622313056,4.3439,131.07,131.04,9.39]
[1726622313550,4.3439,131.07,131.05,3.8143]
[1726622317756,1.4657,131.07,131.06,3.814]
[1726622319661,19.0731,131.1,131.06,3.814]
[1726622319854,13.2031,131.1,131.07,3.8137]
[1726622320465,9.39,131.09,131.06,3.8139]
[1726622320664,9.39,131.07,131.0,3.8463828]
[1726622320964,9.39,131.07,131.02,9.39]
[1726622321665,9.39,131.07,131.05,3.8142]
[1726622322262,9.39,131.06,131.01,9.39]
[1726622322664,9.39,131.06,131.03,3.8147]
[1726622322854,9.39,131.06,131.0,9.39]
[1726622323261,13.2041,131.06,131.03,3.8149]
[1726622323858,2.9099,131.09,131.01,9.39]
[1726622324065,9.39,131.07,131.03,9.39]
[1726622324858,9.39,131.07,131.05,3.8143]
[1726622326460,9.39,131.07,131.03,9.39]
[1726622326663,9.39,131.07,131.04,3.8144]
[1726622326865,13.2038,131.07,131.04,3.8144]
[1726622327262,13.2038,131.07,131.03,9.39]
[1726622327467,2.9099,131.09,131.03,3.8148]
[1726622327468,9.39,131.06,131.03,3.8148]
[1726622327868,9.39,131.06,131.02,3.815]
[1726622328059,9.39,131.04,131.02,3.815]
[1726622329368,9.39,131.04,131.03,3.8149]
[1726622330170,1.4115,131.05,131.03,3.8149]
[1726622330673,1.4115,131.05,131.04,3.8146]
[1726622330972,1.4115,131.05,131.03,3.8148]
[1726622330973,10.8015,131.05,131.03,3.8148]
[1726622331966,1.4115,131.05,131.03,3.8148]
[1726622332472,9.39,131.07,131.02,9.39]
[1726622333566,9.39,131.08,131.04,9.39]
[1726622333966,9.39,131.08,131.05,3.8143]
[1726622334263,9.39,131.08,131.04,9.39]
[1726622334470,9.39,131.08,131.05,3.8141]
[1726622335772,9.39,131.08,131.06,3.8139]
[1726622336766,6.7231,131.09,131.02,9.39]
[1726622336767,9.39,131.07,131.02,9.39]
[1726622337071,9.39,131.06,131.02,9.39]
[1726622337373,9.39,131.06,131.03,3.8149]
[1726622337766,9.39,131.06,131.02,9.39]
[1726622338774,9.39,131.06,131.04,3.8146]
[1726622339472,9.39,131.07,131.04,3.8146]
[1726622340271,13.2038,131.07,131.04,3.8146]
[1726622340462,9.39,131.07,131.04,3.8146]
[1726622341678,9.39,131.08,131.05,3.8143]
[1726622342468,9.39,131.08,131.06,3.814]
[1726622343475,1.4279,131.09,131.07,3.8138]
[1726622343869,1.4279,131.09,131.06,9.39]
[1726622344469,9.39,131.08,131.07,3.8136]
[1726622344679,9.39,131.08,131.04,9.39]
[1726622345162,9.39,131.08,130.97,11.64819061]
[1726622345163,9.39,131.06,131.02,9.39]
[1726622345371,1.4642,131.12,131.05,9.39]
[1726622345570,1.4642,131.12,131.1,3.8127]
[1726622346172,9.39,131.11,130.99,7.6318]
[1726622346377,9.39,131.1,131.05,9.39]
[1726622346775,9.39,131.1,131.07,3.8135]
[1726622347084,9.39,131.08,130.99,7.6318]
[1726622347276,9.39,131.08,131.03,9.39]
[1726622348181,9.39,131.08,131.06,3.8138]
[1726622349275,13.2031,131.1,131.07,3.8137]
[1726622349483,9.39,131.1,131.07,9.39]
[1726622349779,3.0109,131.11,131.07,9.39]
[1726622350369,3.0109,131.11,131.08,3.8133]
[1726622350581,3.0109,131.11,131.08,9.39]
[1726622350876,3.0109,131.11,131.09,9.39]
[1726622350877,1.5053,131.11,131.09,9.39]
[1726622351083,15.26,131.13,131.11,3.8126]
[1726622351971,15.26,131.13,131.09,9.39]
[1726622351972,24.65,131.13,131.1,3.8128]
[1726622352778,9.39,131.14,131.1,9.39]
[1726622353175,3.8115,131.15,131.1,9.39]
[1726622353176,13.2015,131.15,131.1,9.39]
[1726622353382,9.39,131.15,131.12,3.8121]
[1726622354378,9.39,131.14,131.11,3.8125]
[1726622355683,13.2015,131.15,131.12,3.8123]
[1726622355870,19.5488,131.18,131.11,9.39]
[1726622355871,13.2012,131.16,131.11,9.39]
[1726622356076,9.39,131.17,131.13,9.39]
[1726622356381,9.39,131.17,131.14,3.8115]
[1726622357283,28.9388,131.18,131.14,9.39]
[1726622357978,28.9388,131.18,131.06,1.7818]
[1726622357979,9.39,131.17,131.12,9.39]
[1726622358179,19.5488,131.18,131.11,9.39]
[1726622358180,9.39,131.16,131.11,9.39]
[1726622358582,9.39,131.16,131.13,3.8118]
[1726622360387,9.39,131.17,131.14,3.8116]
[1726622360988,32.7494,131.18,131.14,13.2016]
[1726622361987,23.3594,131.18,131.14,3.8116]
[1726622362383,8.0994,131.18,131.14,3.8116]
[1726622362788,4.2888,131.18,131.12,14.65]
[1726622363487,8.0994,131.18,131.12,14.65]
[1726622364086,3.811,131.17,131.1,14.65]
[1726622364685,3.811,131.17,131.13,3.8119]
[1726622365392,22.7494,131.18,131.1,14.65]
[1726622365686,22.7494,131.18,131.11,14.65]
[1726622365887,8.0994,131.18,131.11,14.65]
[1726622366190,8.0994,131.18,131.14,3.8115]
[1726622366788,8.0994,131.18,131.15,3.8114]
[1726622368989,8.0994,131.18,131.11,14.65]
[1726622368990,8.0994,131.18,131.14,3.8116]
[1726622369589,3.811,131.17,131.13,3.8119]
[1726622370594,3.811,131.17,131.09,14.65]
[1726622370595,14.65,131.17,131.12,3.8121]
[1726622371091,3.8114,131.15,131.12,3.8121]
[1726622371797,3.8113,131.16,131.12,3.8121]
[1726622372197,14.65,131.17,131.12,3.8121]
[1726622372402,3.8114,131.15,131.12,3.8121]
[1726622372594,14.65,131.17,131.13,3.8119]
[1726622373298,3.8113,131.16,131.13,3.8119]
[1726622375190,3.811,131.17,131.14,3.8117]
[1726622375393,4.2888,131.18,131.13,14.65]
[1726622376392,4.2888,131.18,131.15,3.8112]
[1726622377491,3.8105,131.19,131.16,3.8111]
[1726622377799,3.8105,131.19,131.13,14.65]
[1726622378296,3.8105,131.19,131.15,3.8111]
[1726622378601,3.8106,131.18,131.15,3.8111]
[1726622378795,14.65,131.2,131.11,14.65]
[1726622379299,14.65,131.18,131.09,14.65]
[1726622379506,5.12992084,131.21,131.11,3.8124]
[1726622379507,3.8116,131.15,131.11,3.8124]
[1726622379691,14.65,131.16,131.11,3.8124]
[1726622379895,16.1689,131.16,131.11,3.8124]
[1726622380095,3.8115,131.15,131.11,3.8124]
[1726622381196,16.1689,131.16,131.11,14.65]
[1726622381197,5.3301,131.16,131.11,14.65]
[1726622381499,3.037,131.17,131.11,14.65]
[1726622382800,6.848,131.17,131.13,3.8118]
[1726622384004,3.8104,131.19,131.12,14.65]
[1726622384300,4.4284,131.2,131.12,14.65]
[1726622384501,3.8104,131.19,131.12,14.65]
[1726622384699,4.4284,131.2,131.12,14.65]
[1726622385605,3.8108,131.18,131.14,3.8116]
[1726622387804,3.8108,131.18,131.15,3.8114]
[1726622388003,13.1908,131.18,131.15,3.8114]
[1726622389104,9.38,131.18,131.14,9.38]
[1726622389708,13.1907,131.18,131.15,3.8114]
[1726622391298,4.4284,131.2,131.16,3.8111]
[1726622391299,13.1904,131.19,131.16,3.8111]
[1726622402109,13.8084,131.2,131.17,3.8107]
[1726622402815,17.6186,131.2,131.17,3.8107]
[1726622403018,13.8084,131.2,131.17,3.8107]
[1726622403214,3.8106,131.18,131.12,3.8893744]
[1726622403411,9.38,131.18,131.13,9.38]
[1726622403616,9.38,131.18,131.14,9.38]
[1726622403812,9.38,131.19,131.14,9.38]
[1726622404515,9.38,131.19,131.16,13.1911]
[1726622404516,3.8103,131.19,131.16,13.1911]
[1726622404713,4.4284,131.2,131.18,9.38]
[1726622404714,2.9705,131.2,131.18,9.38]
[1726622404911,1.4796,131.2,131.18,9.38]
[1726622405306,1.4796,131.2,131.17,13.1906]
[1726622405712,1.4796,131.2,131.18,3.8106]
[1726622408122,15.24,131.26,131.2,3.8097]
[1726622408424,10.7727,131.25,131.21,9.38]
[1726622408924,1.3927,131.25,131.21,9.38]
[1726622409125,5.2013,131.25,131.21,13.1897]
[1726622409333,10.7727,131.25,131.2,9.38]
[1726622409623,13.1893,131.23,131.2,9.38]
[1726622410428,3.8089,131.24,131.2,13.19]
[1726622411728,3.8089,131.24,131.14,1.7367]
[1726622411729,1.3927,131.25,131.19,3.8101]
[1726622411925,9.38,131.22,131.18,9.38]
[1726622412426,13.1896,131.22,131.18,13.1903]
[1726622412629,9.38,131.21,131.18,3.8103]
[1726622414533,3.8092,131.23,131.19,13.1902]
[1726622415640,9.38,131.22,131.18,3.8105]
[1726622416237,13.1895,131.22,131.18,3.8105]
[1726622416535,9.38,131.24,131.19,9.38]
[1726622416737,13.1889,131.24,131.19,9.38]
[1726622416938,3.8089,131.24,131.2,13.1898]
[1726622417535,3.8092,131.23,131.2,13.1898]
[1726622417735,9.38,131.21,131.14,1.7367]
[1726622417937,13.1898,131.21,131.16,9.38]
[1726622418134,9.38,131.22,131.17,9.38]
[1726622418332,9.38,131.22,131.18,9.38]
[1726622418843,13.1891,131.23,131.19,3.8102]
[1726622419040,13.1891,131.23,131.19,13.1902]
[1726622419243,13.1891,131.23,131.19,9.38]
[1726622419446,13.1891,131.23,131.19,13.1901]
[1726622419942,13.1889,131.24,131.2,3.8099]
[1726622420444,9.38,131.24,131.2,3.8099]
[1726622421444,3.8092,131.23,131.2,3.8099]
[1726622421648,9.38,131.24,131.2,3.8099]
[1726622422042,13.1891,131.24,131.2,3.8099]
[1726622422542,9.38,131.24,131.19,9.38]
[1726622422845,9.38,131.23,131.19,9.38]
[1726622423745,13.1892,131.23,131.2,3.8099]
[1726622426653,13.1892,131.23,131.2,13.1899]
[1726622429351,10.7727,131.25,131.21,13.1896]
[1726622429548,1.3927,131.25,131.22,9.38]
[1726622430153,1.3927,131.25,131.22,13.1892]
[1726622430541,1.3927,131.25,131.22,9.38]
[1726622430742,6.7118,131.27,131.24,3.8088]
[1726622431346,3.8082,131.26,131.23,13.189]
[1726622431850,9.38,131.25,131.2,9.38]
[1726622432052,9.38,131.24,131.19,9.38]
[1726622432363,9.38,131.24,131.2,3.8098]
[1726622432652,3.8094,131.23,131.19,9.38]
[1726622432958,13.1894,131.23,131.19,3.8101]
[1726622433356,3.8094,131.22,131.19,3.8101]
[1726622433953,13.1892,131.23,131.19,3.8101]
[1726622434254,9.38,131.23,131.19,3.8101]
[1726622434648,3.8096,131.22,131.19,3.8101]
[1726622435050,9.38,131.23,131.18,13.1904]
[1726622435251,3.8096,131.22,131.18,13.1904]
[1726622435551,9.38,131.22,131.17,13.1906]
[1726622435748,9.38,131.2,131.17,13.1906]
[1726622436251,13.1902,131.2,131.16,3.811]
[1726622436456,9.38,131.2,131.16,3.811]
[1726622436658,9.38,131.17,131.13,150.65234644]
[1726622436857,9.38,131.16,131.07,1.7905]
[1726622437057,9.38,131.16,131.11,9.38]
[1726622437354,3.8117,131.14,131.1,13.1926]
[1726622437562,9.38,131.14,131.09,9.38]
[1726622437859,9.38,131.13,131.09,9.38]
[1726622438757,13.1922,131.13,131.09,13.1929]
[1726622438962,9.38,131.13,131.09,9.38]
[1726622439458,13.1921,131.13,131.09,13.193]
[1726622440054,3.8121,131.13,131.09,3.813]
[1726622440458,3.8118,131.14,131.1,3.8128]
[1726622440657,29.9,131.17,131.09,14.66]
[1726622441761,3.8115,131.15,131.11,3.8125]
[1726622444253,15.24,131.17,131.1,14.66]
[1726622444655,15.24,131.17,131.12,3.8123]
[1726622444957,19.0511,131.17,131.1,14.66]
[1726622445158,19.0511,131.17,131.12,3.8123]
[1726622445364,19.0511,131.17,131.1,14.66]
[1726622445766,19.0511,131.17,131.13,3.8118]
[1726622446862,3.8111,131.17,131.13,3.8118]
[1726622447558,3.8112,131.16,131.13,3.8118]
[1726622447769,14.66,131.17,131.08,14.66]
[1726622448264,3.8116,131.15,131.11,3.8124]
[1726622448663,3.8116,131.15,131.08,14.66]
[1726622449665,14.66,131.17,131.1,14.66]
[1726622449857,1.4559,131.18,131.12,14.66]
[1726622450054,5.2666,131.18,131.12,14.66]
[1726622450358,1.4559,131.18,131.11,14.66]
[1726622450562,3.8116,131.15,131.12,3.8121]
[1726622452267,3.8113,131.16,131.12,3.8121]
[1726622452564,16.1159,131.18,131.13,3.8119]
[1726622452565,1.4559,131.18,131.13,3.8119]
[1726622453265,3.811,131.17,131.13,3.8119]
[1726622453464,3.811,131.17,131.14,3.8117]
[1726622454162,3.8112,131.16,131.13,3.8119]
[1726622454664,16.1159,131.18,131.09,14.66]
[1726622454867,14.66,131.16,131.07,18.80736337]
[1726622455470,3.812,131.13,131.07,14.66]
[1726622455666,14.66,131.16,131.07,14.66]
[1726622455863,14.66,131.14,131.09,3.813]
[1726622456464,14.66,131.16,131.07,14.66]
[1726622457061,3.812,131.14,131.1,3.8126]
[1726622457564,14.66,131.16,131.1,3.8126]
[1726622458766,3.812,131.14,131.1,3.8126]
[1726622459475,15.24,131.17,131.11,14.66]
[1726622459969,15.24,131.17,131.07,0.2876]
[1726622459970,13.1913,131.16,131.12,13.1922]
[1726622460270,13.1913,131.16,131.12,9.38]
[1726622461064,9.38,131.16,131.12,9.38]
[1726622461668,13.1913,131.16,131.13,3.812]
[1726622462063,9.38,131.16,131.13,3.8118]
[1726622462266,13.1911,131.17,131.13,13.1918]
[1726622462668,9.38,131.17,131.13,13.1918]
[1726622463670,9.38,131.16,131.11,9.38]
[1726622464668,13.1916,131.15,131.12,3.8122]
[1726622465483,9.38,131.15,131.13,3.8118]
[1726622465770,13.1912,131.16,131.13,3.8118]
[1726622466264,13.1912,131.16,131.12,3.8122]
[1726622466576,9.38,131.15,131.11,9.38]
[1726622467069,9.38,131.15,131.12,3.8122]
[1726622467070,13.1915,131.15,131.12,3.8122]
[1726622471882,3.8113,131.16,131.12,9.38]
[1726622472177,1.4559,131.18,131.15,9.38]
[1726622472378,1.4536,131.19,131.17,9.38]
[1726622472580,3.8101,131.2,131.17,13.1908]
[1726622472771,2.903,131.22,131.17,9.38]
[1726622472967,2.903,131.22,131.21,9.38]
[1726622473169,2.903,131.22,131.19,13.1901]
[1726622473376,2.903,131.22,131.19,9.38]
[1726622473377,1.4746,131.22,131.19,9.38]
[1726622473877,1.4746,131.22,131.18,14.64]
[1726622474975,1.4746,131.22,131.19,3.8102]